Cogmind - Beta 17 @@@ ROGUE MODE // 2026.08.06 @ 15:01:37 Player: Petvaria Result: Self-destructed Performance ------------- Evolutions (1) 500 Regions Visited (5) 1000 Robots Destroyed (76) 380 Value Destroyed (1682) 1682 Prototype IDs (25) 500 Alien Tech Used (0) 0 Bonus (193) 193 TOTAL SCORE: 4255 Bonus ------- High Alert Combat Kills 13 Aligned with FarCom 300 Friendly Fire -120 Cogmind --------- Core Integrity 51/400 Matter 175/300 Energy 265/265 System Corruption 3% Temperature Cool (22) Movement Treading (200) Ox1 Location -9/Exiles Parts ------- > --- POWER (1) -------- Improved Ion Engine > --- PROPULSION (3) --- Light Treads Light Treads > --- UTILITY (3) ------ Improved Heat Sink High-capacity Storage Unit > --- WEAPON (2) ------- Heavy Particle Cannon Heavy Assault Rifle > --- INVENTORY (20) --- Light Deuterium Engine Light Treads Light Treads Improved Terrain Scanner Light Armor Plating Hardened Light Armor Plating AWS/Thermal Latent Energy Streamer Advanced Beam Cannon Heavy Particle Cannon Heavy Particle Cannon Heavy Assault Rifle Rocket Launcher Peak State ------------ > --- POWER ------------ Improved Ion Engine > --- PROPULSION ------- Light Treads Light Treads Light Treads > --- UTILITY ---------- Improved Heat Sink High-capacity Storage Unit Hardened Light Armor Plating > --- WEAPON ----------- AWS/Thermal > --- INVENTORY -------- Light Deuterium Engine Light Treads Light Treads Light Treads Improved Terrain Scanner Light Armor Plating Hardened Light Armor Plating Latent Energy Streamer Advanced Beam Cannon Heavy Particle Cannon Heavy Particle Cannon Heavy Particle Cannon Heavy Assault Rifle Heavy Assault Rifle Rocket Launcher [Rating: 31] Favorites ----------- Power Improved Ion Engine Engine Improved Ion Engine Propulsion Light Treads Treads Light Treads Wheel Compact Wheel Utility High-capacity Storage Unit Device Improved Heat Sink Storage High-capacity Storage Unit Protection Hardened Light Armor Plating Weapon Beam Rifle Energy Gun Beam Rifle Energy Cannon Advanced Beam Cannon Ballistic Gun Heavy Assault Rifle Launcher Rocket Launcher Build | -11 -10 -10 -9 -9 -9 ------- Run | Yrd Mat Min Mat Min Exi Slots Evolved 2 | . . . 2 . . Power . | . . . . . . Propulsion 1 | . . . 1 . . Utility 1 | . . . 1 . . Weapon . | . . . . . . Parts Attached 51 | 7 5 3 26 4 6 Power 5 | 1 1 . 3 . . Engine 5 | 1 1 . 3 . . Core . | . . . . . . Reactor . | . . . . . . Propulsion 14 | 2 . 1 8 2 1 Treads 11 | 2 . . 6 2 1 Leg . | . . . . . . Wheel 3 | . . 1 2 . . Hover . | . . . . . . Flight . | . . . . . . Utility 14 | 2 2 2 7 1 . Device 3 | 1 . . 2 . . Storage 4 | 1 1 1 1 . . Processor . | . . . . . . Hackware . | . . . . . . Protection 7 | . 1 1 4 1 . Artifact . | . . . . . . Weapon 18 | 2 2 . 8 1 5 Energy Gun 7 | 1 1 . 4 . 1 Energy Cannon 5 | . 1 . 2 . 2 Ballistic Gun 3 | 1 . . . 1 1 Ballistic Cannon . | . . . . . . Launcher 3 | . . . 2 . 1 Special Weapon . | . . . . . . Impact Weapon . | . . . . . . Slashing Weapon . | . . . . . . Piercing Weapon . | . . . . . . Special Melee Weapon . | . . . . . . Unidentified Prototypes 2 | . . . 2 . . Parts Lost 8 | . 2 1 1 1 3 Power . | . . . . . . Propulsion 5 | . 1 1 1 . 2 Utility 2 | . . . . 1 1 Weapon 1 | . 1 . . . . Highest Loss Streak 2 | . 2 1 1 1 2 To Critical Strikes 2 | . 1 . . . 1 Average Backups 17 | 4 11 15 19 19 17 Power 1 | . 1 1 1 1 1 Propulsion 2 | 2 1 . 3 4 3 Utility 5 | . 6 6 5 4 4 Weapon 8 | . 2 7 10 10 8 Tool/Special . | . . . . . . Unused Backups 33 | . 5 1 13 . 14 Power 7 | . . 1 2 . 4 Propulsion 5 | . 3 . 1 . 1 Utility 6 | . . . 2 . 4 Weapon 15 | . 2 . 8 . 5 Tool/Special . | . . . . . . Average Slot Usage (%) 97 | . 92 84 98 99 98 Engine 11 | . 14 14 11 11 11 Treads 28 | . 22 6 30 33 33 Device 9 | . 5 . 11 11 11 Storage 11 | . 14 14 11 11 11 Protection 10 | . 8 14 11 10 11 Energy Gun 8 | . 9 14 11 8 . Energy Cannon 10 | . 8 14 10 11 9 Ballistic Gun 3 | . 8 . . 2 10 Peak Build Rating 31 | 7 9 9 19 19 31 Average Rating 16 | 4 8 8 17 18 21 On Entrance 10 | . 7 9 9 19 19 Avg Prop Armor Cover (%) 9 | . . . 9 . . Naked Turns . | . . . . . . Heaviest Build 63 | 14 34 54 62 62 63 Greatest Support 60 | 40 40 20 60 60 60 Greatest Overweight (x) 3 | . 1 3 3 1 1 Average Overweight (x) . | . . 2 . 1 . Largest Inventory Capacity 20 | 8 15 20 20 20 20 Average Capacity 18 | 7 13 17 20 20 20 Most Carried 20 | 7 15 17 20 20 20 Average Carried 17 | 4 12 15 19 19 18 Final Capacity 20 | 8 15 20 20 20 20 Final Carried 20 | 6 15 17 20 19 14 Class Distribution -------------------- 74% | Scavenger-Mutant 25% | Mutant Dominant Class ---------------- Mutant | -10/Materials Mutant | -10/Mines Scavenger-Mutant | -9/Materials Scavenger-Mutant | -9/Mines Scavenger-Mutant | -9/Exiles Resources | -11 -10 -10 -9 -9 -9 ----------- Run | Yrd Mat Min Mat Min Exi Matter Collected 954 | 282 203 30 375 64 . Remotely . | . . . . . . Salvage Created 2633 | 108 639 137 1594 143 12 Parts 165 | 8 31 8 109 9 . Haulers Intercepted 7 | . 1 . 6 . . Recyclers Shooed 4 | . . . 4 . . Parts Field Recycled . | . . . . . . Retrieved Matter . | . . . . . . Parts Self-Destructed . | . . . . . . Prevented . | . . . . . . Parts Restored . | . . . . . . Kills | -11 -10 -10 -9 -9 -9 ------- Run | Yrd Mat Min Mat Min Exi Combat Hostiles Destroyed 58 | . 14 5 31 4 4 Guns 23 | . 8 2 11 2 . Cannons 27 | . 6 3 16 2 . AOE 6 | . . . 2 . 4 Classes Destroyed 10 | 2 5 . 2 . 1 Worker 5 | . 1 . 4 . . Builder 2 | . 1 . 1 . . Tunneler 2 | 2 . . . . . Hauler 7 | . 1 . 6 . . Recycler 3 | 1 . . 2 . . Watcher 3 | . . . 3 . . Swarmer 20 | . 3 3 14 . . Grunt 24 | . 11 2 8 3 . Sentry 9 | . . . 9 . . Assembled 4 | . . . . . 4 Best Kill Streak 5 | 3 3 3 5 3 4 Combat Bots Only 4 | . 3 3 4 3 4 Max Kills in Single Turn 3 | 1 2 1 2 1 3 Gunslinging . | . . . . . . Exploded 3 | . . . 1 . 3 Melee . | . . . . . . Uniques/NPCs Destroyed 1 | . . . . 1 . YI-UF0 (-9/Mines) Combat | -11 -10 -10 -9 -9 -9 -------- Run | Yrd Mat Min Mat Min Exi Hostile Shots Fired 289 | . 76 24 109 22 58 Missed 70 | . 17 4 34 4 11 Hits 219 | . 59 20 75 18 47 Projectile 219 | . 59 20 75 18 47 AOE 12 | . . . . 12 . Critical Strikes 27 | . 2 1 3 . 21 Damage Taken 3009 | . 669 177 912 473 778 Core 517 | . 116 52 120 80 149 Absorbed by Shields . | . . . . . . Regen/Repaired (Parts) 89 | . . . 89 . . Core Remaining (%) 66 | 100 . 32 . . . Volleys Fired 218 | 4 64 11 107 14 18 Largest 2 | 2 2 2 2 2 2 Hottest 131 | 60 80 116 124 131 98 Shots Fired 408 | 5 118 22 203 28 32 Gun 231 | 5 89 11 96 14 16 Cannon 171 | . 29 11 103 14 14 Launcher 6 | . . . 4 . 2 Special . | . . . . . . Kinetic 76 | 4 54 . . 2 16 Thermal 325 | 1 64 22 199 26 13 Explosive 6 | . . . 4 . 2 Electromagnetic 1 | . . . . . 1 Robot Hit Streak 20 | 5 18 8 17 20 12 Robot Miss Streak 3 | . 3 2 3 2 2 Penetration Max . | . . . . . . Secondary Targets . | . . . . . . Shots Hit Robots 287 | 5 78 15 144 22 23 Core Hits 116 | 4 30 7 60 6 9 Critical Kills 2 | . . . 1 1 . Critical Parts Destroyed . | . . . . . . Critical Strikes 12 | . . 1 9 2 . Burn 10 | . . 1 8 1 . Meltdown 1 | . . . 1 . . Destroy 1 | . . . . 1 . Melee Attacks . | . . . . . . Impact . | . . . . . . Slashing . | . . . . . . Piercing . | . . . . . . Sneak Attacks . | . . . . . . Combat Hostiles . | . . . . . . Follow-up Attacks . | . . . . . . Damage Inflicted 4996 | 62 1083 254 2769 431 397 Guns 2338 | 62 749 115 1078 181 153 Cannons 2085 | . 297 139 1377 250 22 Explosions 490 | . . . 268 . 222 Melee . | . . . . . . Ramming 83 | . 37 . 46 . . Kinetic 684 | 51 463 . . 17 153 Thermal 3739 | 11 583 254 2455 414 22 Explosive 490 | . . . 268 . 222 Electromagnetic . | . . . . . . Impact . | . . . . . . Slashing . | . . . . . . Piercing . | . . . . . . Highest Corruption 3 | . . . . . 3 Average Corruption 3 | . . . . . 3 Corruption Purged . | . . . . . . Corruption Blocked . | . . . . . . Effects 2 | . . . . . 2 Alerts 1 | . . . . . 1 Weapon Failures 1 | . . . . . 1 Overload Shots . | . . . . . . Overflow Damage 44 | . . 11 33 . . Projectiles 17 | . . 11 6 . . Explosions 26 | . . . 26 . . Melee 1 | . . . 1 . . Knockbacks . | . . . . . . Impact . | . . . . . . Kinetic . | . . . . . . Secondary . | . . . . . . Self-Inflicted Damage 19 | . . . 19 . . Shots 1 | . . . 1 . . Rammed 19 | . 9 . 9 1 . Targets Rammed 19 | . 9 . 9 1 . Kicked . | . . . . . . Crushed . | . . . . . . Highest Temperature 381 | . 381 342 210 283 26 Average Temperature 81 | . 100 168 55 114 11 Received Heat Transfer 720 | . 318 27 333 42 . Effects 4 | . 1 3 . . . Shutdowns 1 | . 1 . . . . Energy Bleed 1 | . . 1 . . . Interference 2 | . . 2 . . . Siege Activations . | . . . . . . Martial Activations . | . . . . . . Shielding Activations . | . . . . . . Robots Disrupted . | . . . . . . Combat Hostiles . | . . . . . . Robots Corrupted 1 | . . . 1 . . Combat Hostiles . | . . . . . . Parts Fried 1 | . . . 1 . . Impact Corruptions 1 | . . . 1 . . Robots Melted 2 | . . . 2 . . Combat Hostiles 2 | . . . 2 . . Parts Melted 25 | . . 2 22 1 . Heat Transferred 8840 | 25 1279 666 5920 851 99 Parts Sabotaged . | . . . . . . Parts Stolen . | . . . . . . Parts Stripped . | . . . . . . Power Chain Reactions . | . . . . . . Latent Energy Used 194 | . . . . . 194 LE Corruption 3 | . . . . . 3 Alert | -11 -10 -10 -9 -9 -9 ------- Run | Yrd Mat Min Mat Min Exi Maximum Alert Level 2 | . . . 2 . . Low Security (%) 87 | 100 100 100 77 100 . Level 1 7 | . . . 13 . . Level 2 5 | . . . 9 . . Level 3 . | . . . . . . Level 4 . | . . . . . . Level 5 . | . . . . . . High Security . | . . . . . . Max Security . | . . . . . . Peak Influence 435 | 10 116 65 435 163 . Initial 163 | . . . . 163 . Average 99 | 1 55 30 140 42 . Influence Increases 1678 | 15 406 135 1049 73 . Destroy 0b10 Robot/C 1060 | . 280 100 620 60 . Destroy 0b10 Robot/NC 110 | 15 15 . 80 . . Destroy Leader 290 | . 62 20 198 10 . Successful Hack 7 | . . . 7 . . Disable Machine 90 | . 15 15 60 . . Destroy Structure 46 | . 4 . 39 3 . Partial Spotted 15 | . 15 . . . . Lose Combat Pursuer 60 | . 15 . 45 . . Influence Decreases 1678 | 15 406 135 628 494 . Entered New Map 258 | . . . . 258 . Time Decay 1299 | 15 386 130 533 235 . Lost Part 36 | . 20 5 10 1 . Purge Threat 85 | . . . 85 . . Squads Dispatched 6 | . 2 . 4 . . Investigation . | . . . . . . Extermination . | . . . . . . Reinforcement 5 | . 2 . 3 . . Assault 1 | . . . 1 . . Garrison . | . . . . . . Intercept . | . . . . . . Searches Triggered . | . . . . . . Construction Impeded . | . . . . . . Haulers Reinforced . | . . . . . . Active Scanning Responses . | . . . . . . Cargo Convoy Interrupts . | . . . . . . Stealth | -11 -10 -10 -9 -9 -9 --------- Run | Yrd Mat Min Mat Min Exi Distress Signals 10 | . . . 10 . . Communications Jammed . | . . . . . . Distress Signals . | . . . . . . Times Spotted 96 | . 27 5 55 4 5 Peak Tracking Total 9 | . 4 3 8 3 9 Tactical Retreats 4 | . 1 . 3 . . Traps | -11 -10 -10 -9 -9 -9 ------- Run | Yrd Mat Min Mat Min Exi Traps Triggered 2 | . 1 . 1 . . Indirectly . | . . . . . . Trap Hack Attempts . | . . . . . . Triggered . | . . . . . . Disarmed . | . . . . . . Reprogrammed . | . . . . . . Reused . | . . . . . . Traps Extracted . | . . . . . . Installed . | . . . . . . Triggered . | . . . . . . Machines | -11 -10 -10 -9 -9 -9 ---------- Run | Yrd Mat Min Mat Min Exi Machines Disabled 11 | . 1 1 4 . 5 Max in Single Turn 2 | . 1 1 2 . 2 Machines Repaired . | . . . . . . Machines Dismantled . | . . . . . . Machines Sabotaged . | . . . . . . Overloaded Fab Kills . | . . . . . . Hacking | -11 -10 -10 -9 -9 -9 --------- Run | Yrd Mat Min Mat Min Exi Machines Accessed 12 | . 4 . 6 . 2 Terminals 6 | . 4 . 2 . . Fabricators . | . . . . . . Repair Stations 2 | . . . 2 . . Recycling Units . | . . . . . . Scanalyzers 2 | . . . 2 . . Garrison Access . | . . . . . . Total Hacks 33 | . 12 . 19 . 2 Successful 14 | . 1 . 11 . 2 Failed 18 | . 11 . 7 . . Catastrophic 2 | . . . 2 . . Database Lockouts 1 | . . . 1 . . Manual 20 | . 12 . 7 . 1 Terminals 19 | . 12 . 7 . . Fabricators . | . . . . . . Repair Stations 7 | . . . 7 . . Recycling Units . | . . . . . . Scanalyzers 5 | . . . 5 . . Garrison Access . | . . . . . . Terminal Hacks 5 | . 1 . 2 . 2 Record 1 | . . . . . 1 Part Schematic 1 | . 1 . . . . Robot Schematic 1 | . . . 1 . . Unreport Threat 1 | . . . 1 . . Proto ID Catalog 1 | . . . . . 1 Fabricator Hacks . | . . . . . . Repair Station Hacks 5 | . . . 5 . . Scan Component 3 | . . . 3 . . Repair 2 | . . . 2 . . Recycling Unit Hacks . | . . . . . . Scanalyzer 4 | . . . 4 . . Retrieve Study 4 | . . . 4 . . Garrison Access Hacks . | . . . . . . Unauthorized Hacks . | . . . . . . Terminals . | . . . . . . Fabricators . | . . . . . . Repair Stations . | . . . . . . Recycling Units . | . . . . . . Scanalyzers . | . . . . . . Garrison Access . | . . . . . . Data Cores Recovered . | . . . . . . Used . | . . . . . . Hacking Detections 10 | . 4 . 6 . . Full Trace Events 3 | . 1 . 2 . . Feedback Events . | . . . . . . Feedback Blocked . | . . . . . . Robot Schematics Acquired 1 | . . . 1 . . Robots Built . | . . . . . . Authchips . | . . . . . . Time . | . . . . . . Total Robot Build Rating . | . . . . . . Part Schematics Acquired 1 | . 1 . . . . Parts Built . | . . . . . . Authchips . | . . . . . . Time . | . . . . . . Total Part Build Rating . | . . . . . . Part Studies Acquired 4 | . . . 4 . . Parts Repaired 2 | . . . 2 . . Time 62 | . . . 62 . . Parts Recycled . | . . . . . . Recycled Matter . | . . . . . . Retrieved Matter . | . . . . . . Retrieved Components . | . . . . . . Parts Scanalyzed . | . . . . . . Part Schematics Acquired . | . . . . . . Parts Damaged . | . . . . . . Bothacking | -11 -10 -10 -9 -9 -9 ------------ Run | Yrd Mat Min Mat Min Exi Used RIF Installer . | . . . . . . Robots Hacked . | . . . . . . Non-combat . | . . . . . . Combat . | . . . . . . Robot Hacks Applied . | . . . . . . Relay Couplers Released . | . . . . . . Fabnet Peak Effective % . | . . . . . . Robots Rewired . | . . . . . . Allies Hacked . | . . . . . . Hacks Repelled . | . . . . . . Allies | -11 -10 -10 -9 -9 -9 -------- Run | Yrd Mat Min Mat Min Exi Total Allies . | . . . . . . Largest Group . | . . . . . . Highest-Rated Group . | . . . . . . Highest-Rated Ally . | . . . . . . Total Orders . | . . . . . . Ally Attacks . | . . . . . . Total Damage . | . . . . . . Kills . | . . . . . . Allies Corrupted . | . . . . . . Allies Melted . | . . . . . . Intel | -11 -10 -10 -9 -9 -9 ------- Run | Yrd Mat Min Mat Min Exi Active Infowar (turns) 431 | 13 418 . . . . Seismic 431 | 13 418 . . . . Robot Analysis Total . | . . . . . . Derelict Logs Recovered 3 | . . 2 . 1 . Drone Launches . | . . . . . . Drone Recoveries . | . . . . . . Exploration | -11 -10 -10 -9 -9 -9 ------------- Run | Yrd Mat Min Mat Min Exi Turns Passed 6367 | 96 1054 290 2914 789 1224 Spaces Moved 2961 | 50 410 143 1429 368 561 Core 11 | 11 . . . . . Treads 2739 | 39 410 43 1318 368 561 Legs . | . . . . . . Wheels 211 | . . 100 111 . . Hover . | . . . . . . Flight . | . . . . . . Fastest Speed 50 | 50 160 130 110 200 160 Average Speed 176 | 135 189 173 160 200 197 Slowest Speed 240 | 160 240 240 240 200 200 Overloaded Moves . | . . . . . . Propulsion Burnouts . | . . . . . . Robots Hopped . | . . . . . . Potential Cave-ins . | . . . . . . Cave-ins Triggered . | . . . . . . Exploration Rate (%) 57 | 3 72 33 94 77 67 Regions Visited 5 Branch Regions 3 Pre-discovered Areas 2 | . . . . 1 1 Known Exits Taken . | . . . . . . Unknown Exits Taken 5 | 1 1 1 1 1 . Scrap Searched 2 | . . 1 . 1 . Spaces Dug . | . . . . . . Terrain Destroyed 59 | . . . 32 3 24 Melee . | . . . . . . Projectile 3 | . . . . 3 . AOE 56 | . . . 32 . 24 Terrain Rammed . | . . . . . . Walls Destroyed . | . . . . . . Machines Disabled . | . . . . . . Actions | -11 -10 -10 -9 -9 -9 --------- Run | Yrd Mat Min Mat Min Exi Total 3710 | 73 568 164 1862 391 652 Wait 313 | . 56 1 207 5 44 Move 2956 | 49 409 142 1428 367 561 Hop . | . . . . . . Pick Up 73 | 13 16 5 33 . 6 Fast Attach 9 | . 2 . 7 . . Attach 21 | 7 . 1 6 1 6 Detach 6 | . . . 1 . 5 Swap 33 | . 4 2 23 3 1 Drop 62 | . 8 2 41 . 11 Fire 218 | 4 64 11 107 14 18 Melee . | . . . . . . Ram . | . . . . . . Kick . | . . . . . . Crush 19 | . 9 . 9 1 . Escape Stasis . | . . . . . . Rewire . | . . . . . . Trap . | . . . . . . Miscellaneous . | . . . . . . Route ------- -11/Scrapyard -10/Materials (discovered 5 exits: *Mat x3 / [*Min] / [*Sub]) -10/Mines -9/Materials (discovered 6 exits: *Mat x3 / [*Min x2] / [*Sto]) -9/Mines (discovered 2 exits: *Mat / *Exi) -9/Exiles History --------- Turn | Location | Event 5 | -11/Scrapyard | Discovered new exit (range 16) 97 | -11/Scrapyard | Entered Materials 249 | -10/Materials | Discovered new exit (range 12) 300 | -10/Materials | Build established: Mutant 416 | -10/Materials | Discovered new exit (range 16) 614 | -10/Materials | Discovered new exit (range 9) 866 | -10/Materials | Discovered new exit (range 9) 966 | -10/Materials | Discovered new exit (range 16) 1151 | -10/Materials | Entered Mines 1166 | -10/Mines | Core integrity fell below 50% 1396 | -10/Mines | Discovered new exit (range 13) 1423 | -10/Mines | Learned Materials terminal intel 1426 | -10/Mines | Learned location of 1 exit from Materials 1441 | -10/Mines | Entered Materials 1441 | -9/Materials | Evolved 2 slots: Propulsion x1, Utility x1 1442 | -9/Materials | Identified exit to Materials 1443 | -9/Materials | Loaded intel: 11 terminal locations 1895 | -9/Materials | Discovered new exit (range 6) 1902 | -9/Materials | Build established: Scavenger-Mutant 2188 | -9/Materials | Repaired Broken Lgt. Treads 2257 | -9/Materials | Repaired Lgt. Treads 2399 | -9/Materials | Discovered exit to Materials (range 15) 3150 | -9/Materials | Discovered exit to Materials (range 13) 3163 | -9/Materials | Discovered new exit (range 10) 3552 | -9/Materials | Central database locked down 4241 | -9/Materials | First assault squad dispatched 4257 | -9/Materials | Discovered new exit (range 6) 4355 | -9/Materials | Entered Mines 4383 | -9/Mines | Learned location of Zion (-7) 4499 | -9/Mines | A weapon hastily lodged in a ceiling crevice suddenly fell to the ground 4780 | -9/Mines | YI-UF0 nonchalantly dropped a Grenade Launcher on the ground 4807 | -9/Mines | Destroyed YI-UF0 4941 | -9/Mines | Discovered exit to Materials (range 6) 5132 | -9/Mines | Deemed a non-threat by the Exiles lab entrance 5134 | -9/Mines | Discovered new exit (range 5) 5144 | -9/Mines | Entered Exiles 5192 | -9/Exiles | Met 8R-AWN 5226 | -9/Exiles | Met EX-HEX 5292 | -9/Exiles | Met EX-BIN 5322 | -9/Exiles | Aligned with FarCom system 5324 | -9/Exiles | Given EX-Vault access code 5370 | -9/Exiles | Opened EX-Vault 5384 | -9/Exiles | Found Trap Reconfigurator 5402 | -9/Exiles | Found Latent Energy Streamer 5406 | -9/Exiles | Found AWS/Thermal 5445 | -9/Exiles | Warned to stay clear of 0b10 Research branches 5511 | -9/Exiles | Met EX-DEC 6212 | -9/Exiles | Attacked by the Exiles 6307 | -9/Exiles | Core integrity fell below 50% 6347 | -9/Exiles | Core integrity fell below 20% 6368 | -9/Exiles | Self-destructed Last Messages --------------- HV Slug penetrates Earth. HV Slug penetrates Wall. Penetrated by HV Slug. HV Slug penetrates Earth. Penetrated by HV Slug. Critical hit (Destroy). HV Slug penetrates Earth. Penetrated by HV Slug. HV Slug penetrates Earth. Penetrated by HV Slug. Critical hit (Destroy). Lgt. Treads+ destroyed. HV Slug penetrates Earth. Penetrated by HV Slug. HV Slug penetrates Earth. Penetrated by HV Slug. HV Slug penetrates Earth. Penetrated by HV Slug. Hrd. Light Armor Plating destroyed. HV Slug penetrates Earth. Map ----- +----------------------------------------------------+ | ?????????????????????????????????????????????????? | | ?????????????????????????????????????????????????? | | ?????????????????????????????????????????????????? | | ?????????????????????????????????????????????????? | | ?????????????????????????????????????????????????? | | ?????????????????????????????????????????????????? | | ?????????????????????????????????????????????????? | | ?????????????????????????????????????????????????? | | ?????????????????????????????????????????????????? | | ?????????????????????????????????????????????????? | | ??????????????????????????????????#######????????? | | ??????????????????? ######???????#!!! "#????????? | | ??????????????????? #""#??????# "#????????? | | ?????????????????? ??????# "#????????? | | ??????????????????" #????## ""#????????? | | ??????????????????" ##### ""#????????? | | ???????????????????# #; ""#????????? | | ????????????????????# # #??????????? | | ???????????????????????# ;??????????? | | ??????????????????????????# ;##????????? | | ??????????????????????????### "#????????? | | ????????????????????########" "##???????? | | ????????????????????# !!"" " # #???? | | ????????????????????#! ! "### % ##?? | | ????????????????????#! [! g "#?#" ### | | ????????????????????#! [@ ##??#" | | ????????????????????# ! ;;#???#"# | | ?????????????????# ;;;;;;;### #???#### % | | ??????????????# # ## #?# #??????### | | ??????????????## #?# #??##?# #????????## | | ???????????????###???# ??????# #??????????# | | ?????????????????????#???????###???????????## | | ????????????????????????????????????????????##" | | ?????????????????????????????????????????????#""" | | ????????????????????????????????????????????##" | | ????????????????????????????????????????????#"" | | ????????????????????????????????????????????#""" | | ????????????????????????????????????????????""" | | ???????????????????????????????????????????#""" | | ???????????????????????????????????????????#"" | | ???????????????????????????????????????????#""" | | ???????????????????????????????????????????#"" | | ???????????????????????????????????????????##"" | | ????????????????????????????????????????????#"""" | | ?????????????????????????????????????????????# | | ?????????????????????????????????????????????#" | | ?????????????????????????????????????????????#"""" | | ?????????????????????????????????????????????#"" | | ?????????????????????????????????????????????#" | | ?????????????????????????????????????????????#""" | +----------------------------------------------------+ Best States ------------- Heat Dissipation 42 Energy Generation 12 Energy Capacity 265 Matter Stores 300 Matter Capacity 300 Sight Range 16 Terrain Scan Density 10 Armor Coverage 150 Evasion (%) 50 Recoil Reduction 3 Item Schematics ----------------- Huge Storage Unit | -10/Materials | Hacked Robot Schematics ------------------ M-13 Machinist | -9/Materials | Hacked Fabricated ------------ Nothing Repaired ---------- Lgt. Treads | 63% | -9/Materials | Broken Lgt. Treads | 72% | -9/Materials Studied --------- Lgt. Treads | -9/Materials | Hacked Hvy. Assault Rifle | -9/Materials | Hacked Beam Rifle | -9/Materials | Hacked Rocket Launcher | -9/Materials | Hacked Alien Tech Used ----------------- None Achievements -------------- None Challenges ------------ None Game ------ Seed KineticProtonAutogun Manual? 0 Play Time 00:39:32 Cumulative 552.9 hours Start 2026.08.05 @ 16:19:29 End 2026.08.06 @ 15:01:37 Sessions 4 Manual Loads 0 Difficulty Rogue Special Mode None Game No. 314 Rogue 314 Adventurer 0 Explorer 0 Win Type - Total 36 Types 17/2/7/2/1/1/1/2/1/2 Lore% 97 Gallery% 92 Achievement% 86 Wizard Run 0 Options --------- Layout 1 ASCII 0 Keyboard 0 Movement Numpad Keybinds 0 Fullscreen 1 Font 24/Proggy Map View 50x35 Zoom Use 0% Tactical HUD 0 Map Filters NONE Filters NONE Steam 1 RUN: d9126296-e2e4-4761-a89d-29e749306ff8